bitfinex-derivatives/quotes_BTCF0:USTF0_20250720
["timestamp","ask_amount","ask_price","bid_price","bid_amount"]
[1752999543574,1.37505168,118340.0,118330.0,0.39865093]
[1752999543780,1.37505168,118340.0,118330.0,0.39965093]
[1752999544380,1.37505168,118340.0,118330.0,0.39865093]
[1752999544581,1.37505168,118340.0,118330.0,0.39965093]
[1752999545882,1.37505168,118340.0,118330.0,0.33627093]
[1752999547982,1.37505168,118340.0,118330.0,0.33527093]
[1752999548178,1.37505168,118340.0,118330.0,0.33627093]
[1752999549078,1.39188215,118340.0,118330.0,0.33627093]
[1752999549383,1.39188215,118340.0,118330.0,0.33527093]
[1752999549683,1.39188215,118340.0,118330.0,0.33627093]
[1752999550881,1.39188215,118340.0,118330.0,0.33527093]
[1752999551283,1.39188215,118340.0,118330.0,0.33627093]
[1752999553281,1.39188215,118340.0,118330.0,0.16635363]
[1752999553482,1.39188215,118340.0,118330.0,0.2745472]
[1752999553984,2.56076215,118340.0,118330.0,0.10562]
[1752999555686,2.56076215,118340.0,118330.0,0.16635363]
[1752999556486,2.56076215,118340.0,118330.0,0.10562]
[1752999557181,2.56076215,118340.0,118330.0,0.2745474]
[1752999557684,2.56076215,118340.0,118330.0,0.3306774]
[1752999558386,2.56076215,118340.0,118330.0,0.3316774]
[1752999559492,2.56076215,118340.0,118330.0,0.2999274]
[1752999560187,2.56076215,118340.0,118330.0,0.2989274]
[1752999560386,2.56076215,118340.0,118330.0,0.2999274]
[1752999563283,2.56076215,118340.0,118330.0,0.2989274]
[1752999563591,2.19996215,118340.0,118330.0,0.2999274]
[1752999563791,2.56076215,118340.0,118330.0,0.2999274]
[1752999564493,2.56076215,118340.0,118330.0,0.2989274]
[1752999564792,2.56076215,118340.0,118330.0,0.2999274]
[1752999567693,2.30612277,118340.0,118330.0,0.2999274]
[1752999567889,2.56076215,118340.0,118330.0,0.2999274]
[1752999570603,2.56076215,118340.0,118330.0,0.2989274]
[1752999570795,2.56076215,118340.0,118330.0,0.2999274]
[1752999572905,2.56076215,118340.0,118330.0,0.2989274]
[1752999573101,2.56076215,118340.0,118330.0,0.2999274]
[1752999573698,2.56076215,118340.0,118330.0,0.2989274]
[1752999573902,2.56076215,118340.0,118330.0,0.2999274]
[1752999576007,2.56076215,118340.0,118330.0,0.3010474]
[1752999577410,2.19996215,118340.0,118330.0,0.3010474]
[1752999577600,2.56076215,118340.0,118330.0,0.3000474]
[1752999577804,2.56076215,118340.0,118330.0,0.3010474]
[1752999579016,2.56076215,118340.0,118330.0,0.36178798]
[1752999579315,2.56076215,118340.0,118330.0,0.39869798]
[1752999579613,2.56076215,118340.0,118330.0,0.3379574]
[1752999582409,2.30612277,118340.0,118330.0,0.3379574]
[1752999582712,2.56076215,118340.0,118330.0,0.3379574]
[1752999583108,2.30612277,118340.0,118330.0,0.3379574]
[1752999583310,2.56076215,118340.0,118330.0,0.3379574]
[1752999585613,1.39188215,118340.0,118330.0,0.3379574]
[1752999589019,2.56080215,118340.0,118330.0,0.3379574]
[1752999590718,2.20000215,118340.0,118330.0,0.3379574]
[1752999590920,2.56080215,118340.0,118330.0,0.3379574]
[1752999591315,2.20000215,118340.0,118330.0,0.3379574]
[1752999591619,2.56080215,118340.0,118330.0,0.3379574]
[1752999592314,2.56080215,118340.0,118330.0,0.39869798]
[1752999594422,2.30616277,118340.0,118330.0,0.39869798]
[1752999594618,2.56080215,118340.0,118330.0,0.39869798]
[1752999595114,2.20000215,118340.0,118330.0,0.39869798]
[1752999595315,2.56080215,118340.0,118330.0,0.39869798]
[1752999597820,2.56080215,118340.0,118330.0,0.3379574]
[1752999598214,2.56080215,118340.0,118330.0,0.39869798]
[1752999599822,1.13724277,118340.0,118330.0,0.39869798]
[1752999600023,1.39188215,118340.0,118330.0,0.39869798]
[1752999600621,1.22296925,118340.0,118330.0,0.39869798]
[1752999600923,0.85968925,118340.0,118330.0,0.46527709]
[1752999601123,0.85968925,118340.0,118330.0,0.3379574]
[1752999601519,0.60504987,118340.0,118330.0,0.3379574]
[1752999601823,0.60504987,118340.0,118330.0,0.35658989]
[1752999602019,0.85968925,118340.0,118330.0,0.35658989]
[1752999602521,0.01872987,118340.0,118330.0,0.35658989]
[1752999602722,0.85968925,118340.0,118330.0,0.35658989]
[1752999603420,0.60504987,118340.0,118330.0,0.35658989]
[1752999603821,1.22048925,118340.0,118330.0,0.35658989]
[1752999604125,0.85968925,118340.0,118330.0,0.41733047]
[1752999604323,1.22048925,118340.0,118330.0,0.41733047]
[1752999605518,1.38940295,118340.0,118330.0,0.41733047]
[1752999606220,1.13476357,118340.0,118330.0,0.41733047]
[1752999606419,1.38940295,118340.0,118330.0,0.41733047]
[1752999606620,1.13476357,118340.0,118330.0,0.41733047]
[1752999606922,1.38940295,118340.0,118330.0,0.41733047]
[1752999607321,1.38940295,118340.0,118330.0,0.41633047]
[1752999607525,1.38940295,118340.0,118330.0,0.41733047]
[1752999608225,1.38940295,118340.0,118330.0,0.35658989]
[1752999608824,1.51672264,118340.0,118330.0,0.2766674]
[1752999609024,1.38940295,118340.0,118330.0,0.2766674]
[1752999610325,1.38940295,118340.0,118330.0,0.2756674]
[1752999610525,1.38940295,118340.0,118330.0,0.2766674]
[1752999611625,1.38940295,118340.0,118330.0,0.2756674]
[1752999611825,1.38940295,118340.0,118330.0,0.2766674]
[1752999613221,1.38940295,118340.0,118330.0,0.2756674]
[1752999613422,1.38940295,118340.0,118330.0,0.2766674]
[1752999614428,1.13476357,118340.0,118330.0,0.2766674]
[1752999614628,1.38940295,118340.0,118330.0,0.2766674]
[1752999617431,1.13476357,118340.0,118330.0,0.2766674]
[1752999617635,1.38940295,118340.0,118330.0,0.2766674]
[1752999619734,1.38940295,118340.0,118330.0,0.276668]
[1752999619933,1.38940295,118340.0,118330.0,0.275668]
[1752999622134,1.38940295,118340.0,118330.0,0.297468]
[1752999622324,1.38940295,118340.0,118330.0,0.335808]
[1752999623338,1.38940295,118340.0,118330.0,0.336808]
[1752999624441,1.13476357,118340.0,118330.0,0.336808]
[1752999624634,1.38940295,118340.0,118330.0,0.10674]
[1752999624839,1.51672264,118340.0,118330.0,0.15227663]
[1752999625040,1.51672264,118340.0,118330.0,0.13716663]
[1752999625240,1.51672264,118340.0,118330.0,0.16752305]
[1752999625541,1.52552733,118340.0,118330.0,0.12198642]
[1752999627341,1.52552733,118340.0,118330.0,0.03658642]
[1752999630748,0.2111609,118330.0,118320.0,0.03032717]
[1752999630949,1.17717565,118330.0,118320.0,0.03032717]
[1752999631851,0.18622936,118320.0,118310.0,0.13802071]
[1752999632055,1.51510843,118320.0,118310.0,0.13802071]
[1752999632455,1.51510843,118320.0,118310.0,0.12442071]
[1752999632947,1.51700783,118320.0,118310.0,0.12442071]
[1752999633151,1.51800783,118320.0,118310.0,0.12442071]
[1752999633951,1.51800783,118320.0,118310.0,0.09253]
[1752999634157,1.51900783,118320.0,118310.0,0.09253]
[1752999636555,1.53544529,118320.0,118310.0,0.09253]
[1752999639361,1.15348622,118320.0,118310.0,0.09253]
[1752999639661,1.53544529,118320.0,118310.0,0.09253]
[1752999642265,1.51900783,118320.0,118310.0,0.09253]
[1752999642558,1.53543378,118320.0,118310.0,0.09253]
[1752999646066,1.15347471,118320.0,118310.0,0.09253]
[1752999646266,1.53543378,118320.0,118310.0,0.09253]
[1752999646868,1.89623378,118320.0,118310.0,0.09253]
[1752999648464,1.17463378,118320.0,118310.0,0.09253]
[1752999648664,1.89623378,118320.0,118310.0,0.09253]
[1752999650168,1.89623507,118320.0,118310.0,0.09253]
[1752999655771,1.514276,118320.0,118310.0,0.09253]
[1752999656072,1.89623507,118320.0,118310.0,0.09253]
[1752999660771,1.89623507,118320.0,118310.0,0.09464]
[1752999661468,1.89433567,118320.0,118310.0,0.09464]
[1752999661672,1.8973963,118320.0,118310.0,0.09464]
[1752999664075,0.2633665,118310.0,118300.0,0.07401497]
[1752999664276,1.02255281,118310.0,118300.0,0.07401497]
[1752999664776,1.02561344,118310.0,118300.0,0.07401497]
[1752999665776,2.19489344,118310.0,118300.0,0.07401497]
[1752999666078,2.19489344,118310.0,118300.0,0.16476497]
[1752999666678,2.06757375,118310.0,118300.0,0.16476497]
[1752999668174,2.06757375,118310.0,118300.0,0.19506497]
[1752999669883,1.70677375,118310.0,118300.0,0.19506497]
[1752999670082,2.42837375,118310.0,118300.0,0.19506497]
[1752999674186,2.42837375,118310.0,118300.0,0.36403577]
[1752999674387,3.01445375,118310.0,118300.0,0.36403577]
[1752999674790,3.01445375,118310.0,118300.0,0.19506497]
[1752999676891,2.29285375,118310.0,118300.0,0.19506497]
[1752999677089,3.01445375,118310.0,118300.0,0.19506497]
[1752999677891,2.29285375,118310.0,118300.0,0.19506497]
[1752999678085,3.01445375,118310.0,118300.0,0.36403577]
[1752999678292,3.01445375,118310.0,118300.0,0.19506497]
[1752999681592,2.75981437,118310.0,118300.0,0.19506497]
[1752999681792,3.01445375,118310.0,118300.0,0.19506497]
[1752999684489,2.99802651,118310.0,118300.0,0.19506497]
[1752999684690,3.01450571,118310.0,118300.0,0.19506497]
[1752999688594,2.29290571,118310.0,118300.0,0.19506497]
[1752999688795,3.01442571,118310.0,118300.0,0.19506497]
[1752999689994,3.01442571,118310.0,118300.0,0.19717497]
[1752999692900,3.01442571,118310.0,118300.0,0.16687497]
[1752999695907,2.29282571,118310.0,118300.0,0.16687497]
[1752999696203,3.01442571,118310.0,118300.0,0.16687497]
[1752999696902,3.01442571,118310.0,118300.0,0.13829497]
[1752999697704,3.02343953,118310.0,118300.0,0.13829497]
[1752999698095,3.01442571,118310.0,118300.0,0.08025497]
[1752999698693,3.01442571,118310.0,118300.0,0.12653497]
[1752999698893,3.01442571,118310.0,118300.0,0.12442497]
[1752999699192,3.01542571,118310.0,118300.0,0.12442497]
[1752999699903,3.01758714,118310.0,118300.0,0.12442497]
[1752999700305,3.01758714,118310.0,118300.0,0.12653497]
[1752999700599,3.01758714,118310.0,118300.0,0.13994497]
[1752999700902,3.02628776,118310.0,118300.0,0.0811]
[1752999706003,3.01758714,118310.0,118300.0,0.0811]
[1752999707205,3.14490683,118310.0,118300.0,0.0811]
[1752999708304,0.3093808,118300.0,118290.0,0.05884497]
[1752999708497,1.65445907,118300.0,118290.0,0.05884497]
[1752999708897,1.65868113,118300.0,118290.0,0.01341]
[1752999710206,0.1689851,118290.0,118280.0,0.12829497]
[1752999710401,1.50686448,118290.0,118280.0,0.19985497]
[1752999710711,1.51067448,118290.0,118280.0,0.19985497]
[1752999711004,1.51489654,118290.0,118280.0,0.19774497]
[1752999711204,1.51108654,118290.0,118280.0,0.36674437]
[1752999711808,1.51108654,118290.0,118280.0,0.37579884]
[1752999713912,1.51108654,118290.0,118280.0,0.20679944]
[1752999714105,1.51108654,118290.0,118280.0,0.37579874]
[1752999714310,1.52836457,118290.0,118280.0,0.37579874]
[1752999714500,1.59499592,118290.0,118280.0,0.37579874]
[1752999715000,1.59499592,118290.0,118280.0,0.37679874]
[1752999717410,1.59873592,118290.0,118280.0,0.19774497]
[1752999718413,1.59873592,118290.0,118280.0,0.20645334]
[1752999720315,1.59873592,118290.0,118280.0,0.37645274]
[1752999721214,1.01289592,118290.0,118280.0,0.37645274]
[1752999721414,1.59487592,118290.0,118280.0,0.37645274]
[1752999722515,1.00915592,118290.0,118280.0,0.37645274]
[1752999722716,1.59487592,118290.0,118280.0,0.37645274]
[1752999723309,0.75451744,118290.0,118280.0,0.37645274]
[1752999723517,1.46751713,118290.0,118280.0,0.37645274]
[1752999725221,1.46751713,118290.0,118280.0,0.33101777]
[1752999727214,0.88183713,118290.0,118280.0,0.33101777]
[1752999727522,0.73445978,118290.0,118280.0,0.51907804]
[1752999728215,0.78487978,118290.0,118280.0,0.51907804]
[1752999729018,0.78487978,118290.0,118280.0,0.45833746]
[1752999729825,0.78487978,118290.0,118280.0,0.81913746]
[1752999730018,0.02150009,118290.0,118280.0,1.00719773]
[1752999730216,0.60710009,118290.0,118280.0,1.17627773]
[1752999731624,0.60710009,118290.0,118280.0,1.11553715]
[1752999732727,0.60710009,118290.0,118280.0,1.11753715]
[1752999733229,0.60710009,118290.0,118280.0,1.19346288]
[1752999735026,0.60710009,118290.0,118280.0,1.25412978]
[1752999735229,0.02150009,118290.0,118280.0,1.17820405]
[1752999735423,0.60702009,118290.0,118280.0,1.17820405]
[1752999737639,0.60702009,118290.0,118280.0,1.00912405]
[1752999738334,0.60702009,118290.0,118280.0,0.75448467]
[1752999738639,0.86615978,118290.0,118280.0,0.52100436]
[1752999739238,0.83316978,118290.0,118280.0,0.52100436]
[1752999740033,0.83316978,118290.0,118280.0,0.46033746]
[1752999740231,0.83316978,118290.0,118280.0,0.52100436]
[1752999740837,0.86615978,118290.0,118280.0,0.52100436]
[1752999741133,0.86615978,118290.0,118280.0,0.46033746]
[1752999741933,0.86615978,118290.0,118280.0,0.52100436]
[1752999742133,0.86615978,118290.0,118280.0,0.46033746]
[1752999742336,0.86615978,118290.0,118280.0,0.52100436]
[1752999742836,0.86615978,118290.0,118280.0,0.39368467]
[1752999743042,0.86615978,118290.0,118280.0,0.52100436]
[1752999743236,0.86615978,118290.0,118280.0,0.52311436]
[1752999743642,0.86615978,118290.0,118280.0,0.46244746]
[1752999744637,0.73884009,118290.0,118280.0,0.52311436]
[1752999744843,0.86615978,118290.0,118280.0,0.46244746]
[1752999745546,0.86615978,118290.0,118280.0,0.52311436]
[1752999746137,0.86615978,118290.0,118280.0,0.46244746]
[1752999746638,0.86615978,118290.0,118280.0,0.52311436]
[1752999751548,0.86615978,118290.0,118280.0,0.39579467]
[1752999751848,0.86941978,118290.0,118280.0,0.39579467]
[1752999752146,1.23021978,118290.0,118280.0,0.39479467]
[1752999752547,1.23021978,118290.0,118280.0,0.39579467]
[1752999753046,1.23021978,118290.0,118280.0,0.39479467]
[1752999753249,1.23021978,118290.0,118280.0,0.39379467]
[1752999754345,0.86941978,118290.0,118280.0,0.39379467]
[1752999754546,1.23021978,118290.0,118280.0,0.39279467]
[1752999754845,1.23021978,118290.0,118280.0,0.33312777]
[1752999755144,1.23021978,118290.0,118280.0,0.39379467]
[1752999756548,1.23021978,118290.0,118280.0,0.33312777]
[1752999756843,0.64469978,118290.0,118280.0,0.33312777]
[1752999757045,1.22993978,118290.0,118280.0,0.33312777]
[1752999758348,0.86913978,118290.0,118280.0,0.33312777]
[1752999758646,1.22993978,118290.0,118280.0,0.33312777]
[1752999760951,0.86913978,118290.0,118280.0,0.33312777]
[1752999761251,1.22993978,118290.0,118280.0,0.33312777]
[1752999762052,1.39892698,118290.0,118280.0,0.33312777]
[1752999764453,1.22993978,118290.0,118280.0,0.33312777]
[1752999765155,1.22993978,118290.0,118280.0,0.37864387]
[1752999767055,1.39892688,118290.0,118280.0,0.37864387]
[1752999767750,1.22993978,118290.0,118280.0,0.37864387]
[1752999768654,1.39892688,118290.0,118280.0,0.37864387]
[1752999768847,1.39892688,118290.0,118280.0,0.33312777]
[1752999769444,1.03812688,118290.0,118280.0,0.33312777]
[1752999769651,1.39892688,118290.0,118280.0,0.33312777]
[1752999773754,1.39892688,118290.0,118280.0,0.39379467]
[1752999776857,1.27160719,118290.0,118280.0,0.39379467]
[1752999777052,1.39892688,118290.0,118280.0,0.39379467]
[1752999781965,1.39892688,118290.0,118280.0,0.52111436]
[1752999782161,1.39892688,118290.0,118280.0,0.39379467]
[1752999784359,1.39892688,118290.0,118280.0,0.25489467]
[1752999784760,1.39892688,118290.0,118280.0,0.28780467]
[1752999784965,1.39892688,118290.0,118280.0,0.27110777]
[1752999786263,1.39892688,118290.0,118280.0,0.27010777]
[1752999786468,1.39892688,118290.0,118280.0,0.27110777]
[1752999789970,1.39892688,118290.0,118280.0,0.27010777]
[1752999790270,1.39892688,118290.0,118280.0,0.33177467]
[1752999791570,1.39892688,118290.0,118280.0,0.33077467]
[1752999791869,1.39892688,118290.0,118280.0,0.33177467]
[1752999792369,1.39892688,118290.0,118280.0,0.33077467]
[1752999792766,1.39892688,118290.0,118280.0,0.33177467]
[1752999794170,1.39892688,118290.0,118280.0,0.33077467]
[1752999794470,1.39892688,118290.0,118280.0,0.33177467]
[1752999795073,1.39892688,118290.0,118280.0,0.25489467]
[1752999795464,1.39892688,118290.0,118280.0,0.33177467]
[1752999796473,1.39892688,118290.0,118280.0,0.33077467]
[1752999799876,1.27160719,118290.0,118280.0,0.33177467]
[1752999800077,1.39892688,118290.0,118280.0,0.33177467]
[1752999802075,1.27160719,118290.0,118280.0,0.33177467]
[1752999802374,1.39892688,118290.0,118280.0,0.33177467]
[1752999803175,1.39892688,118290.0,118280.0,0.33077467]
[1752999803573,1.75972688,118290.0,118280.0,0.33177467]
[1752999804070,1.75972688,118290.0,118280.0,0.33848467]
[1752999804275,1.75972688,118290.0,118280.0,0.27781777]
[1752999804484,1.75972688,118290.0,118280.0,0.29898777]
[1752999805877,1.75972688,118290.0,118280.0,0.32675777]
[1752999807280,1.63240719,118290.0,118280.0,0.32675777]
[1752999807474,1.75972688,118290.0,118280.0,0.32675777]
[1752999809283,1.63240719,118290.0,118280.0,0.32675777]
[1752999809482,1.75972688,118290.0,118280.0,0.32675777]
[1752999810185,1.75972688,118290.0,118280.0,0.38742467]
[1752999811084,1.63240719,118290.0,118280.0,0.38742467]
[1752999811284,1.75972688,118290.0,118280.0,0.38742467]
[1752999812086,1.39892688,118290.0,118280.0,0.38742467]
[1752999820793,1.03812688,118290.0,118280.0,0.38742467]
[1752999821090,1.39892688,118290.0,118280.0,0.38742467]
[1752999830811,1.03812688,118290.0,118280.0,0.38742467]
[1752999831708,1.39892688,118290.0,118280.0,0.38742467]
[1752999832212,1.52624657,118290.0,118280.0,0.38742467]
[1752999834614,1.39892688,118290.0,118280.0,0.38742467]
[1752999836413,1.38164885,118290.0,118280.0,0.38742467]
[1752999838814,0.89352916,118290.0,118280.0,0.38742467]
[1752999839109,1.38164885,118290.0,118280.0,0.38742467]
[1752999840016,1.25432916,118290.0,118280.0,0.38742467]
[1752999840217,1.38164885,118290.0,118280.0,0.38742467]
[1752999841119,1.50896854,118290.0,118280.0,0.38742467]
[1752999842223,1.38164885,118290.0,118280.0,0.38742467]
[1752999843024,1.02084885,118290.0,118280.0,0.38742467]
[1752999844917,1.38164885,118290.0,118280.0,0.38742467]
[1752999845820,1.38164885,118290.0,118280.0,0.19422777]
[1752999846226,1.38164885,118290.0,118280.0,0.19534777]
[1752999846523,1.38164885,118290.0,118280.0,0.27043777]
[1752999847326,1.50896854,118290.0,118280.0,0.27043777]
[1752999850624,1.25432916,118290.0,118280.0,0.27043777]
[1752999851225,1.38164885,118290.0,118280.0,0.29839777]
[1752999851426,1.25432916,118290.0,118280.0,0.29839777]
[1752999851725,1.38164885,118290.0,118280.0,0.32628777]
[1752999852127,1.25432916,118290.0,118280.0,0.32628777]
[1752999852328,1.3981245,118290.0,118280.0,0.32628777]
[1752999854129,0.8128845,118290.0,118280.0,0.32628777]
[1752999854324,1.01650885,118290.0,118280.0,0.32628777]
[1752999854524,1.37730885,118290.0,118280.0,0.32628777]
[1752999854828,0.79314885,118290.0,118280.0,0.32628777]
[1752999855029,1.24998916,118290.0,118280.0,0.32628777]
[1752999855328,1.37730885,118290.0,118280.0,0.32628777]
[1752999855728,1.24998916,118290.0,118280.0,0.32628777]
[1752999855929,1.37730885,118290.0,118280.0,0.32628777]
[1752999857631,1.24998916,118290.0,118280.0,0.32628777]
[1752999857830,1.37730885,118290.0,118280.0,0.32628777]
[1752999858325,0.26336175,118290.0,118280.0,0.32628777]
[1752999858535,1.01647035,118290.0,118280.0,0.32628777]
[1752999858723,0.88915066,118290.0,118280.0,0.45360746]
[1752999858929,0.84744175,118290.0,118280.0,0.45360746]
[1752999859129,0.13604206,118290.0,118280.0,0.45360746]
[1752999859329,0.58830206,118290.0,118280.0,1.00239405]
[1752999859734,0.71562175,118290.0,118280.0,1.00239405]
[1752999860635,0.58830206,118290.0,118280.0,1.00239405]
[1752999860830,0.71562175,118290.0,118280.0,1.00239405]
[1752999861232,0.58830206,118290.0,118280.0,1.00239405]
[1752999861430,0.71562175,118290.0,118280.0,1.00239405]
[1752999864335,0.76236175,118290.0,118280.0,1.00239405]
[1752999865232,0.76236175,118290.0,118280.0,1.00127405]
[1752999868638,0.76236175,118290.0,118280.0,1.00239405]
[1752999869638,0.76236175,118290.0,118280.0,0.74775467]
[1752999869835,0.76236175,118290.0,118280.0,0.87507436]
[1752999870736,0.80421175,118290.0,118280.0,0.87507436]
[1752999871239,0.80421175,118290.0,118280.0,0.74775467]
[1752999871539,0.80421175,118290.0,118280.0,0.87507436]
[1752999871833,1.19654175,118290.0,118280.0,0.38695467]
[1752999873137,1.19654175,118290.0,118280.0,0.32628777]
[1752999874639,1.19654175,118290.0,118280.0,0.45360746]
[1752999875736,1.19654175,118290.0,118280.0,0.32628777]
[1752999877441,0.83574175,118290.0,118280.0,0.32628777]
[1752999877742,1.19654175,118290.0,118280.0,0.32628777]
[1752999877944,0.83574175,118290.0,118280.0,0.38695467]
[1752999878143,1.19654175,118290.0,118280.0,0.45360746]
[1752999881347,0.83574175,118290.0,118280.0,0.45360746]
[1752999881547,1.19654175,118290.0,118280.0,0.45360746]
[1752999882548,1.19654175,118290.0,118280.0,0.51427436]
[1752999884649,1.36553025,118290.0,118280.0,0.51427436]
[1752999884948,1.19654175,118290.0,118280.0,0.51427436]
[1752999885845,1.23821056,118290.0,118280.0,0.51427436]
[1752999886050,1.36553025,118290.0,118280.0,0.51427436]
[1752999886348,1.19654175,118290.0,118280.0,0.51427436]
[1752999887456,1.36553025,118290.0,118280.0,0.51427436]
[1752999888150,1.36553025,118290.0,118280.0,0.38695467]
[1752999888356,1.36553025,118290.0,118280.0,0.51427436]
[1752999888654,1.36553025,118290.0,118280.0,0.38695467]
[1752999888854,1.36553025,118290.0,118280.0,0.51427436]
[1752999889352,1.00473025,118290.0,118280.0,0.51427436]
[1752999889651,1.36553025,118290.0,118280.0,0.51427436]
[1752999891057,1.23821056,118290.0,118280.0,0.51427436]
[1752999891254,1.36553025,118290.0,118280.0,0.51427436]
[1752999893860,1.00473025,118290.0,118280.0,0.51427436]
[1752999894058,1.36553025,118290.0,118280.0,0.51427436]
[1752999896265,1.36553025,118290.0,118280.0,0.38695467]
[1752999896467,1.36553025,118290.0,118280.0,0.51427436]
[1752999898258,1.06922206,118290.0,118280.0,0.51427436]
[1752999898462,1.19654175,118290.0,118280.0,0.51427436]
[1752999898966,0.61246175,118290.0,118280.0,0.51427436]
[1752999899267,1.19598175,118290.0,118280.0,0.51427436]
[1752999899458,1.36497025,118290.0,118280.0,0.51427436]
[1752999899664,1.23765056,118290.0,118280.0,0.51427436]
[1752999899860,1.36497025,118290.0,118280.0,0.51427436]
[1752999900368,1.36594025,118290.0,118280.0,0.35906467]
[1752999900562,1.36594025,118290.0,118280.0,0.25601467]
[1752999900868,1.36594025,118290.0,118280.0,0.19534777]
[1752999901367,1.72674025,118290.0,118280.0,0.32266746]
[1752999901564,1.74321976,118290.0,118280.0,0.32266746]
[1752999901870,1.61590007,118290.0,118280.0,0.19534777]
[1752999902069,1.72674025,118290.0,118280.0,0.32266746]
[1752999902579,1.43043206,118290.0,118280.0,0.35236746]
[1752999902869,1.55775175,118290.0,118280.0,0.39396746]
[1752999903066,1.43043206,118290.0,118280.0,0.39396746]
[1752999903670,1.55775175,118290.0,118280.0,0.39396746]
[1752999903869,1.55775175,118290.0,118280.0,0.42079746]
[1752999904069,1.55775175,118290.0,118280.0,0.29347777]
[1752999904271,1.72674025,118290.0,118280.0,0.29347777]
[1752999904460,1.43043206,118290.0,118280.0,0.42079746]
[1752999905868,1.55775175,118290.0,118280.0,0.42079746]
[1752999906269,1.43043206,118290.0,118280.0,0.29347777]
[1752999906470,1.43043206,118290.0,118280.0,0.42079746]
[1752999906663,1.55775175,118290.0,118280.0,0.42079746]
[1752999907067,1.43043206,118290.0,118280.0,0.42079746]
[1752999907476,1.55775175,118290.0,118280.0,0.29347777]
[1752999907776,1.55775175,118290.0,118280.0,0.42079746]
[1752999907969,1.72674025,118290.0,118280.0,0.42079746]
[1752999908171,1.72674025,118290.0,118280.0,0.48146436]
[1752999908374,1.59942056,118290.0,118280.0,0.35414467]
[1752999908576,1.72674025,118290.0,118280.0,0.48146436]
[1752999909376,0.83615175,118290.0,118280.0,0.48146436]
[1752999909569,1.19695175,118290.0,118280.0,0.48146436]
[1752999909771,1.19695175,118290.0,118280.0,0.35414467]
[1752999910079,1.36594025,118290.0,118280.0,0.35414467]
[1752999910476,1.36594025,118290.0,118280.0,0.33307467]
[1752999910979,1.36594025,118290.0,118280.0,0.25601467]
[1752999913275,1.36594025,118290.0,118280.0,0.28571467]
[1752999913577,1.36982025,118290.0,118280.0,0.28571467]
[1752999913878,1.37098225,118290.0,118280.0,0.28571467]
[1752999915668,1.37090225,118290.0,118280.0,0.28571467]
[1752999916581,1.37090225,118290.0,118280.0,0.32731467]
[1752999918885,1.01010225,118290.0,118280.0,0.32731467]
[1752999919085,1.37090225,118290.0,118280.0,0.32731467]
[1752999920181,1.37090225,118290.0,118280.0,0.28571467]
[1752999920676,1.24358256,118290.0,118280.0,0.28571467]
[1752999920878,1.37090225,118290.0,118280.0,0.28571467]
[1752999922476,1.37090225,118290.0,118280.0,0.32731467]
[1752999924585,1.01010225,118290.0,118280.0,0.32731467]
[1752999924884,1.43986058,118290.0,118280.0,0.32731467]
[1752999925483,1.31254089,118290.0,118280.0,0.32731467]
[1752999925684,1.43986058,118290.0,118280.0,0.32731467]
[1752999927088,1.44102258,118290.0,118280.0,0.32731467]
[1752999929387,1.08022258,118290.0,118280.0,0.32731467]
[1752999929591,1.44102258,118290.0,118280.0,0.32731467]
[1752999930983,1.08022258,118290.0,118280.0,0.32731467]
[1752999931188,1.44102258,118290.0,118280.0,0.32731467]
[1752999931587,1.56834227,118290.0,118280.0,0.32731467]
[1752999931889,1.44102258,118290.0,118280.0,0.32731467]
[1752999932286,1.44102258,118290.0,118280.0,0.26664777]
[1752999932685,0.72638289,118290.0,118280.0,0.26664777]
[1752999932987,1.44250258,118290.0,118280.0,0.26664777]
[1752999933582,1.44324974,118290.0,118280.0,0.26664777]
[1752999935187,1.31593005,118290.0,118280.0,0.26664777]
[1752999935487,1.44324974,118290.0,118280.0,0.26664777]
[1752999935889,1.31593005,118290.0,118280.0,0.26664777]
[1752999936084,1.44324974,118290.0,118280.0,0.26664777]
[1752999936285,1.31593005,118290.0,118280.0,0.26664777]
[1752999936584,1.44324974,118290.0,118280.0,0.26664777]
[1752999937388,1.08244974,118290.0,118280.0,0.26664777]
[1752999937590,1.44324974,118290.0,118280.0,0.26664777]
[1752999938294,1.44366458,118290.0,118280.0,0.26664777]
[1752999938894,1.31634489,118290.0,118280.0,0.26664777]
[1752999939093,1.44366458,118290.0,118280.0,0.26664777]
[1752999941096,1.44366458,118290.0,118280.0,0.27234777]
[1752999941297,1.44366448,118290.0,118280.0,0.29289777]
[1752999941698,1.14735639,118290.0,118280.0,0.29289777]
[1752999941890,1.27467608,118290.0,118280.0,0.31960777]
[1752999942194,1.27467608,118290.0,118280.0,0.44692746]
[1752999942393,1.27467608,118290.0,118280.0,0.31960777]
[1752999942594,1.27467608,118290.0,118280.0,0.44692746]
[1752999942792,1.08286448,118290.0,118280.0,0.44692746]
[1752999942992,1.44366448,118290.0,118280.0,0.44692746]
[1752999943795,1.31634479,118290.0,118280.0,0.44692746]
[1752999943992,1.44366448,118290.0,118280.0,0.44692746]
[1752999944801,1.27467608,118290.0,118280.0,0.44692746]
[1752999945198,1.14735639,118290.0,118280.0,0.44692746]
[1752999945502,1.27467608,118290.0,118280.0,0.44692746]
[1752999945696,1.20571775,118290.0,118280.0,0.44692746]
[1752999945894,1.37470635,118290.0,118280.0,0.44692746]
[1752999947904,1.37586835,118290.0,118280.0,0.44692746]
[1752999948805,1.01506835,118290.0,118280.0,0.44692746]
[1752999949005,1.37586835,118290.0,118280.0,0.50759436]
[1752999949701,1.37586835,118290.0,118280.0,0.38027467]
[1752999949906,1.37586835,118290.0,118280.0,0.50759436]
[1752999950607,1.20687975,118290.0,118280.0,0.50759436]
[1752999951499,1.20590975,118290.0,118280.0,0.50759436]
[1752999952407,0.84510975,118290.0,118280.0,0.50759436]
[1752999953006,1.20590975,118290.0,118280.0,0.50759436]
[1752999954708,0.84510975,118290.0,118280.0,0.50759436]
[1752999954906,1.20590975,118290.0,118280.0,0.50759436]
[1752999955607,1.07859006,118290.0,118280.0,0.50759436]
[1752999955800,1.20590975,118290.0,118280.0,0.50759436]
[1752999956707,1.20590975,118290.0,118280.0,0.38027467]
[1752999957006,1.20590975,118290.0,118280.0,0.50759436]
[1752999957407,0.84510975,118290.0,118280.0,0.50759436]
[1752999957602,1.20590975,118290.0,118280.0,0.50759436]
[1752999957801,1.20707175,118290.0,118280.0,0.50759436]
[1752999958106,1.20707175,118290.0,118280.0,0.38027467]
[1752999958298,1.37617035,118290.0,118280.0,0.38027467]
[1752999958912,1.20718175,118290.0,118280.0,0.38027467]
[1752999959412,1.37617025,118290.0,118280.0,0.38027467]
[1752999960410,1.20718175,118290.0,118280.0,0.38027467]
[1752999966514,1.20834375,118290.0,118280.0,0.38027467]
[1752999968716,0.91551422,118290.0,118280.0,0.38027467]
[1752999968916,1.27631422,118290.0,118280.0,0.38027467]
[1752999972821,0.91551422,118290.0,118280.0,0.38027467]
[1752999973012,1.27631422,118290.0,118280.0,0.38027467]
[1752999974020,0.91551422,118290.0,118280.0,0.38027467]
[1752999974319,1.27631422,118290.0,118280.0,0.38027467]
[1752999975520,1.14899453,118290.0,118280.0,0.38027467]
[1752999975820,1.14744453,118290.0,118280.0,0.38027467]
[1752999976021,1.27476422,118290.0,118280.0,0.38027467]